Cogmind - Beta 10.1 *** ADVENTURER MODE // 2020.09.21 @ 20:10:20 Player: Azormik Result: Destroyed by G-47 Trooper with Particle Gun Performance ------------- Evolutions (2) 1000 Regions Visited (5) 1000 Robots Destroyed (55) 275 Value Destroyed (1344) 1344 Prototype IDs (0) 0 Alien Tech Used (0) 0 Bonus (7) 7 TOTAL SCORE: 3626 Bonus ------- Follower Combat Kills 7 Cogmind --------- Core Integrity 0/550 Matter 300/300 Energy 100/100 System Corruption 1% Temperature Cool (9) Movement Core (300) Ox5 Location -8/Materials Parts ------- > --- POWER (2) -------- (None) > --- PROPULSION (3) --- (None) > --- UTILITY (3) ------ Large Storage Unit > --- WEAPON (3) ------- (None) > --- INVENTORY (10) --- (None) Peak State ------------ > --- POWER ------------ Improved Ion Engine > --- PROPULSION ------- Light Treads Light Treads > --- UTILITY ---------- Small Storage Unit Large Storage Unit Light Armor Plating > --- WEAPON ----------- Light Assault Rifle Heavy Assault Rifle Rocket Launcher > --- INVENTORY -------- Ion Engine [Rating: 12] Favorites ----------- Power Improved Ion Engine Engine Improved Ion Engine Propulsion Light Treads Treads Light Treads Leg Carbon-fiber Leg Wheel Compact Wheel Flight Unit Flight Unit Utility Small Storage Unit Storage Small Storage Unit Protection Light Armor Plating Weapon Light Assault Rifle Energy Gun Particle Gun Ballistic Gun Light Assault Rifle Launcher Rocket Launcher Special Weapon Mining Laser Build | -11 -10 -10 -9 -9 -8 ------- Run | Scr Mat Min Mat Min Mat Slots Evolved 4 | . . . 2 . 2 Power 1 | . . . . . 1 Propulsion 1 | . . . 1 . . Utility 1 | . . . . . 1 Weapon 1 | . . . 1 . . Parts Attached 39 | 2 6 5 15 4 7 Power 5 | 1 1 . 2 . 1 Engine 5 | 1 1 . 2 . 1 Core . | . . . . . . Reactor . | . . . . . . Propulsion 11 | . 2 1 6 . 2 Treads 2 | . . . 2 . . Leg 2 | . . . . . 2 Wheel 4 | . 2 1 1 . . Hover . | . . . . . . Flight 3 | . . . 3 . . Utility 5 | 1 1 . 2 . 1 Device . | . . . . . . Storage 4 | 1 1 . 1 . 1 Processor . | . . . . . . Hackware . | . . . . . . Protection 1 | . . . 1 . . Artifact . | . . . . . . Weapon 18 | . 2 4 5 4 3 Energy Gun 1 | . . . . . 1 Energy Cannon . | . . . . . . Ballistic Gun 11 | . 2 3 4 1 1 Ballistic Cannon . | . . . . . . Launcher 2 | . . . . 1 1 Special Weapon 4 | . . 1 1 2 . Impact Weapon . | . . . . . . Slashing Weapon . | . . . . . . Piercing Weapon . | . . . . . . Special Melee Weapon . | . . . . . . Unidentified Prototypes . | . . . . . . Parts Lost 24 | . . 4 5 2 13 Power 3 | . . 1 . . 2 Propulsion 7 | . . 2 1 . 4 Utility 2 | . . . . . 2 Weapon 12 | . . 1 4 2 5 Highest Loss Streak 7 | . . 2 2 1 7 Average Slot Usage (%) 67 | . 62 81 64 73 54 Engine 8 | . 14 4 9 11 5 Treads 9 | . . . 12 22 11 Wheel 5 | . 8 19 . . . Flight 1 | . . . 6 . . Storage 16 | . 17 28 13 11 15 Protection 5 | . . . 6 11 5 Ballistic Gun 14 | . 21 26 15 8 7 Launcher 2 | . . . . 7 4 Special Weapon 1 | . . 1 . 2 1 Naked Turns . | . . . . . . Heaviest Build 38 | 9 14 13 16 19 38 Greatest Support 40 | 3 26 26 40 40 40 Greatest Overweight (x) 8 | 2 3 3 4 . 8 Average Overweight (x) . | 1 1 . . . . Largest Inventory Capacity 12 | 6 6 6 6 6 12 Average Capacity 7 | 5 6 6 5 6 11 Most Carried 6 | 5 6 5 6 4 4 Average Carried 2 | 4 3 4 1 3 1 Final Capacity 10 | 6 6 6 6 6 10 Final Carried 5 | 5 4 5 3 2 . Class Distribution -------------------- 48% | Scavenger-Mutant 47% | Mutant Dominant Class ---------------- Mutant | -10/Materials Mutant | -10/Mines Scavenger-Mutant | -9/Materials Scavenger-Mutant | -9/Mines Scavenger-Mutant | -8/Materials Resources | -11 -10 -10 -9 -9 -8 ----------- Run | Scr Mat Min Mat Min Mat Matter Collected 949 | 217 86 99 212 146 189 Remotely . | . . . . . . Salvage Created 1351 | . 156 221 460 182 332 Parts 104 | . 14 8 34 19 29 Haulers Intercepted . | . . . . . . Recyclers Shooed 4 | . . . 2 1 1 Parts Field Recycled . | . . . . . . Retrieved Matter . | . . . . . . Parts Self-Destructed . | . . . . . . Prevented . | . . . . . . Kills | -11 -10 -10 -9 -9 -8 ------- Run | Scr Mat Min Mat Min Mat Combat Hostiles Destroyed 48 | . 7 7 13 12 9 Melee 2 | . 1 . . . 1 Guns 30 | . 6 7 13 1 3 Cannons 1 | . . . . 1 . AOE 15 | . . . . 10 5 Classes Destroyed 8 | . 2 . 2 2 2 Worker 1 | . . . . 1 . Builder 2 | . . . . 2 . Recycler 1 | . . . 1 . . Mechanic 1 | . . . . . 1 Watcher 2 | . . . . . 2 Swarmer 24 | . 5 2 8 6 3 Grunt 19 | . 2 5 2 6 4 Sentry 5 | . . . 3 . 2 Best Kill Streak 5 | . 3 2 5 5 5 Combat Bots Only 5 | . 3 2 5 5 4 Max Kills in Single Turn 3 | . 1 2 2 3 2 Gunslinging 1 | . . 1 . . . Exploded 3 | . . . . 3 1 Melee 1 | . 1 . . . 1 Uniques/NPCs Destroyed . | . . . . . . Combat | -11 -10 -10 -9 -9 -8 -------- Run | Scr Mat Min Mat Min Mat Damage Taken 2786 | . 238 397 395 199 1557 Core 777 | . 79 58 57 28 555 Absorbed by Shields . | . . . . . . Core Remaining (%) 74 | 100 . 45 . 78 . Volleys Fired 130 | . 16 30 35 15 34 Largest 3 | . 2 2 3 3 2 Hottest 220 | . 40 120 60 220 65 Shots Fired 211 | . 32 60 49 21 49 Gun 184 | . 32 55 49 7 41 Cannon . | . . . . . . Launcher 18 | . . . . 10 8 Special 9 | . . 5 . 4 . Kinetic 179 | . 32 55 49 7 36 Thermal 14 | . . 5 . 4 5 Explosive 18 | . . . . 10 8 Electromagnetic . | . . . . . . Robot Hit Streak 12 | . 12 9 12 8 8 Robot Miss Streak 3 | . 3 3 1 2 2 Penetration Max . | . . . . . . Secondary Targets 6 | . 2 1 1 . 2 Max Gunslinging Chain 1 | . 1 1 1 . 1 Shots Hit Robots 154 | . 24 44 39 13 34 Core Hits 97 | . 13 15 26 18 25 Critical Hits 3 | . . 1 2 . . Critical Kills 3 | . . 1 2 . . Critical Parts Destroyed . | . . . . . . Melee Attacks . | . . . . . . Impact . | . . . . . . Slashing . | . . . . . . Piercing . | . . . . . . Sneak Attacks . | . . . . . . Combat Hostiles . | . . . . . . Follow-up Attacks . | . . . . . . Damage Inflicted 2668 | . 209 511 393 880 675 Guns 1409 | . 205 405 388 39 372 Cannons . | . . . . . . Explosions 1078 | . . . . 787 291 Melee . | . . . . . . Ramming 37 | . 4 10 5 6 12 Kinetic 1361 | . 205 405 388 39 324 Thermal 192 | . . 96 . 48 48 Explosive 1078 | . . . . 787 291 Electromagnetic . | . . . . . . Impact . | . . . . . . Slashing . | . . . . . . Piercing . | . . . . . . Highest Corruption 4 | . . 4 . . 1 Average Corruption 2 | . . 4 . . 1 Corruption Purged . | . . . . . . Effects 4 | . . 3 . . 1 Message Errors 4 | . . 3 . . 1 Overload Shots . | . . . . . . Overflow Damage 35 | . . 5 . 15 15 Projectiles 5 | . . 5 . . . Explosions 30 | . . . . 15 15 Melee . | . . . . . . Knockbacks . | . . . . . . Impact . | . . . . . . Kinetic . | . . . . . . Secondary . | . . . . . . Self-Inflicted Damage 27 | . 2 5 . . 20 Shots 1 | . . . . . 1 Rammed 9 | . 3 1 1 . 4 Targets Rammed 13 | . 3 1 1 2 6 Kicked . | . . . . . . Crushed 4 | . . . . 2 2 Highest Temperature 169 | . 15 55 15 169 116 Average Temperature 31 | . 7 24 4 58 43 Received Heat Transfer 1203 | . 57 246 114 120 666 Siege Activations . | . . . . . . Robots Corrupted . | . . . . . . Combat Hostiles . | . . . . . . Parts Fried . | . . . . . . Impact Corruptions . | . . . . . . Robots Melted . | . . . . . . Combat Hostiles . | . . . . . . Parts Melted . | . . . . . . Heat Transferred 411 | . . 200 . 100 111 Parts Sabotaged . | . . . . . . Parts Stolen . | . . . . . . Parts Stripped . | . . . . . . Power Chain Reactions . | . . . . . . Missiles Intercepted . | . . . . . . Alert | -11 -10 -10 -9 -9 -8 ------- Run | Scr Mat Min Mat Min Mat Peak Influence 356 | . 175 198 255 312 356 Initial 57 | . . 57 . 49 49 Average 127 | . 70 98 165 142 138 Maximum Alert Level 1 | . . . 1 1 1 Low Security (%) 84 | 100 100 100 69 85 78 Level 1 15 | . . . 30 14 21 Level 2 . | . . . . . . Level 3 . | . . . . . . Level 4 . | . . . . . . Level 5 . | . . . . . . High Security . | . . . . . . Max Security . | . . . . . . Squads Dispatched 1 | . . . 1 . . Investigation . | . . . . . . Extermination . | . . . . . . Reinforcement 1 | . . . 1 . . Assault . | . . . . . . Garrison . | . . . . . . Intercept . | . . . . . . Construction Impeded . | . . . . . . Haulers Reinforced . | . . . . . . Stealth | -11 -10 -10 -9 -9 -8 --------- Run | Scr Mat Min Mat Min Mat Distress Signals . | . . . . . . Communications Jammed . | . . . . . . Distress Signals . | . . . . . . Times Spotted 67 | . 8 9 20 15 15 Peak Tracking Total 8 | . 3 2 5 3 8 Tactical Retreats 5 | . 1 1 1 . 2 Traps | -11 -10 -10 -9 -9 -8 ------- Run | Scr Mat Min Mat Min Mat Traps Triggered 1 | . . . . . 1 Indirectly . | . . . . . . Trap Hack Attempts . | . . . . . . Triggered . | . . . . . . Disarmed . | . . . . . . Reprogrammed . | . . . . . . Reused . | . . . . . . Traps Extracted . | . . . . . . Installed . | . . . . . . Triggered . | . . . . . . Machines | -11 -10 -10 -9 -9 -8 ---------- Run | Scr Mat Min Mat Min Mat Machines Disabled 2 | . . . . 2 . Max in Single Turn 2 | . . . . 2 . Machines Sabotaged . | . . . . . . Garrisons Compromised . | . . . . . . Overloaded Fab Kills . | . . . . . . Fab Network Shutdowns . | . . . . . . Hacking | -11 -10 -10 -9 -9 -8 --------- Run | Scr Mat Min Mat Min Mat Machines Accessed 2 | . . . . . 2 Terminals 2 | . . . . . 2 Fabricators . | . . . . . . Repair Stations . | . . . . . . Recycling Units . | . . . . . . Scanalyzers . | . . . . . . Garrison Access . | . . . . . . Total Hacks 3 | . . . . . 3 Successful 2 | . . . . . 2 Failed 1 | . . . . . 1 Catastrophic . | . . . . . . Database Lockouts . | . . . . . . Manual . | . . . . . . Terminals 3 | . . . . . 3 Fabricators . | . . . . . . Repair Stations . | . . . . . . Recycling Units . | . . . . . . Scanalyzers . | . . . . . . Garrison Access . | . . . . . . Terminal Hacks 2 | . . . . . 2 Record 1 | . . . . . 1 Locate Traps 1 | . . . . . 1 Fabricator Hacks . | . . . . . . Repair Station Hacks . | . . . . . . Recycling Unit Hacks . | . . . . . . Scanalyzer . | . . . . . . Garrison Access Hacks . | . . . . . . Unauthorized Hacks . | . . . . . . Terminals . | . . . . . . Fabricators . | . . . . . . Repair Stations . | . . . . . . Recycling Units . | . . . . . . Scanalyzers . | . . . . . . Garrison Access . | . . . . . . Data Cores Recovered . | . . . . . . Used . | . . . . . . Hacking Detections 2 | . . . . . 2 Full Trace Events . | . . . . . . Feedback Events . | . . . . . . Feedback Blocked . | . . . . . . Robot Schematics Acquired . | . . . . . . Robots Built . | . . . . . . Matter . | . . . . . . Time . | . . . . . . Total Robot Build Rating . | . . . . . . Part Schematics Acquired . | . . . . . . Parts Built . | . . . . . . Matter . | . . . . . . Time . | . . . . . . Total Part Build Rating . | . . . . . . Parts Repaired . | . . . . . . Time . | . . . . . . Parts Recycled . | . . . . . . Recycled Matter . | . . . . . . Retrieved Matter . | . . . . . . Retrieved Components . | . . . . . . Parts Scanalyzed . | . . . . . . Part Schematics Acquired . | . . . . . . Parts Damaged . | . . . . . . Bothacking | -11 -10 -10 -9 -9 -8 ------------ Run | Scr Mat Min Mat Min Mat Used RIF Installer . | . . . . . . Robots Hacked . | . . . . . . Non-combat . | . . . . . . Combat . | . . . . . . Robot Hacks Applied . | . . . . . . Relay Couplers Released . | . . . . . . Robots Rewired . | . . . . . . Allies Hacked . | . . . . . . Hacks Repelled . | . . . . . . Allies | -11 -10 -10 -9 -9 -8 -------- Run | Scr Mat Min Mat Min Mat Total Allies 1 | . . 1 . . . Largest Group 1 | . . 1 . . . Highest-Rated Group 31 | . . 31 . . . Highest-Rated Ally 31 | . . 31 . . . Total Orders . | . . . . . . Ally Attacks 3 | . . 3 . . . Total Damage 61 | . . 61 . . . Kills 1 | . . 1 . . . Allies Corrupted . | . . . . . . Allies Melted . | . . . . . . Intel | -11 -10 -10 -9 -9 -8 ------- Run | Scr Mat Min Mat Min Mat Robot Analysis Total . | . . . . . . Derelict Logs Recovered 1 | . . 1 . . . Drone Launches . | . . . . . . Drone Recoveries . | . . . . . . Exploration | -11 -10 -10 -9 -9 -8 ------------- Run | Scr Mat Min Mat Min Mat Turns Passed 2660 | 44 313 534 598 525 646 Spaces Moved 1576 | 31 178 370 372 289 336 Core 258 | 31 99 70 44 . 14 Treads 629 | . . . 157 289 183 Legs 139 | . . . . . 139 Wheels 380 | . 79 300 1 . . Hover . | . . . . . . Flight 170 | . . . 170 . . Fastest Speed 34 | 50 90 90 34 160 120 Average Speed 134 | 119 137 110 117 160 156 Slowest Speed 450 | 150 200 200 250 160 450 Overloaded Moves . | . . . . . . Propulsion Burnouts . | . . . . . . Robots Hopped 3 | . . . 3 . . Cave-ins Triggered . | . . . . . . Exploration Rate (%) 32 | 3 24 65 25 50 30 Regions Visited 5 Branch Regions 2 Pre-discovered Areas 1 | . . . . 1 . Known Exits Taken . | . . . . . . Unknown Exits Taken 5 | 1 1 1 1 1 . Scrap Searched 2 | . . 2 . . . Spaces Dug . | . . . . . . Terrain Destroyed 152 | . . . . 90 62 Melee . | . . . . . . Projectile 1 | . . . . 1 . AOE 151 | . . . . 89 62 Terrain Rammed . | . . . . . . Walls Destroyed . | . . . . . . Machines Disabled . | . . . . . . Actions | -11 -10 -10 -9 -9 -8 --------- Run | Scr Mat Min Mat Min Mat Total 1905 | 37 216 429 492 325 406 Wait 117 | . 10 22 54 13 18 Move 1565 | 30 177 369 365 288 336 Hop 3 | . . . 3 . . Pick Up 30 | 5 4 2 12 2 5 Fast Attach 2 | 2 . . . . . Attach 31 | . 5 1 14 4 7 Detach 1 | . . . . 1 . Swap 6 | . 1 4 1 . . Drop 7 | . . . 7 . . Fire 130 | . 16 30 35 15 34 Melee . | . . . . . . Ram 4 | . 3 1 . . . Kick 1 | . . . . . 1 Crush 8 | . . . 1 2 5 Escape Stasis . | . . . . . . Rewire . | . . . . . . Trap . | . . . . . . Miscellaneous . | . . . . . . Route ------- -11/Scrapyard -10/Materials -10/Mines -9/Materials -9/Mines -8/Materials History --------- Turn | Location | Event 17 | -11/Scrapyard | Discovered new exit (range 16) 45 | -11/Scrapyard | Entered Materials 310 | -10/Materials | Build established: Mutant 338 | -10/Materials | Discovered new exit (range 15) 358 | -10/Materials | Entered Mines 363 | -10/Mines | Learned Materials emergency access door positions 463 | -10/Mines | Received a Mining Laser from a helpful Derelict 741 | -10/Mines | Core integrity fell below 50% 780 | -10/Mines | Discovered new exit (range 6) 892 | -10/Mines | Entered Materials 892 | -9/Materials | Evolved 2 slots: Propulsion x1, Weapon x1 1357 | -9/Materials | Build established: Scavenger-Mutant 1433 | -9/Materials | Discovered new exit (range 12) 1490 | -9/Materials | Entered Mines 1555 | -9/Mines | Received a Rocket Launcher from a helpful Derelict 1702 | -9/Mines | Learned location of Storage (-7) 1996 | -9/Mines | Discovered new exit (range 11) 2015 | -9/Mines | Entered Materials 2015 | -8/Materials | Evolved 2 slots: Power x1, Utility x1 2457 | -8/Materials | Lost 7 parts (1p2n1u3w) 2469 | -8/Materials | Core integrity fell below 50% 2582 | -8/Materials | Core integrity fell below 20% 2661 | -8/Materials | Destroyed by G-47 Trooper with Particle Gun Last Messages --------------- The unstable cave ceiling collapses. Ion Engine destroyed. Acquired 25 matter. Connecting with Terminal... Sml. Storage Unit destroyed. K-01 Serf collects debris. Triggered Shock Trap. The floor emits a surge of raw power. System corrupted (+1). K-01 Serf collects debris. K-01 Serf cleans the Electrolysis Chamber. K-01 Serf collects debris. U-05 Engineer destroyed. K-01 Serf collects debris. K-01 Serf cleans the Electrolysis Chamber. Aluminum Leg destroyed. Connecting with Terminal... F%MJBCTSH:B<5DHR=JOJ&2AXJAI#0Q Slammed into T-07 Excavator. Carbon-fiber Leg destroyed. Map ----- +----------------------------------------------------+ | ^ + #???????????????????????????????? | | """ # #???????????????????????????????? | | """ # """ #???????????????????????????????? | | """ # """ ! #???????????????????????????????? | | # """ #???????????????????????????????? | | # #???????????????????????????????? | | """ #########???????????????????????????????? | | """ #??????????????????????????????????????? | | """ #??????????????????????????????????????? | | #??????????????????????????????????????? | | #??????????????????????????????????????? | | ####### #??????????????????????????????????????? | | ??# #??????????????????????????????????????? | | ???# #???????????#######????????????????????? | | "" ??# #???????????# #????????????????????? | | "" ???# #???????????? ?????????????????????? | | "????## ##??????????? T ?????????????????????? | | ?????# #??????????? ?????????????????????? | | ###### #??????????? ?????????????????????? | | % T #???????????# #?????????????????????? | | ######% #???????????# #?????????????????????? | | ?????# %% #???????????# #?????????????????????? | | ?????### ###???????????+ +?????????????????????? | | ???????# #?????????????# #?????????????????????? | | ####### ##????????????# u#?????????????????????? | | + T#????????????# @ #?????????????????????? | | ## ##????????????# #?????????????????????? | | ??# #?????????????# #?????????????????????? | | ??# #?#####???????# #?????????????????????? | | ??# #?# #???????+ #?????????????????????? | | ??# #?# #???????# #?????????????????????? | | ??# #?# #???????# #?????????????????????? | | ??# #?# #???????# #?????????????????????? | | ??# #?# #???????# #?????????????????????? | | ??# #?# #?####### #"????????????????????? | | ??# #?# ## # # #""???????????????????? | | ??# ####+##########gg + ??????????????????? | | " # % % #""???????????????????? | | " + #""???????????????????? | | " # % ! #""???????????????????? | | ??### #####+################?????????????????????? | | ????# # !##########???????????????????????? | | ????# # """#????????????????????????????????? | | ????#/# R"#????????????????????????????????? | | ????"?# """#????????????????????????????????? | | ????"?# #????????????????????????????????? | | ??????# %! #????????????????????????????????? | | ??????# !! #????????????????????????????????? | | ??????# #????????????????????????????????? | | ??????#### ######????????????????????????????????? | +----------------------------------------------------+ Best States ------------- Heat Dissipation 31 Energy Generation 12 Energy Capacity 550 Matter Stores 300 Matter Capacity 300 Sight Range 16 Terrain Scan Density 10 Armor Coverage 150 Resistance: KI 20 Resistance: TH 20 Resistance: EX 20 Resistance: EM 20 Resistance: I 20 Resistance: S 20 Resistance: P 20 Evasion (%) 63 Recoil Reduction 2 Offensive Hacking 10 Item Schematics ----------------- None Robot Schematics ------------------ None Fabricated ------------ Nothing Alien Tech Used ----------------- None Achievements -------------- None Challenges ------------ None Game ------ Seed VortexModifiedCharger Manual? 0 Play Time 00:34:27 Cumulative 22.3 hours Start 2020.09.21 @ 19:37:10 End 2020.09.21 @ 20:10:20 Sessions 1 Manual Loads 0 Difficulty Adventurer Special Mode None Game No. 29 Rogue 24 Adventurer 5 Explorer 0 Win Type - Total 0 Types 0/0/0/0/0/0/0/0/0 Lore% 19 Gallery% 15 Achievement% 12 Wizard Run 0 Options --------- ASCII 1 Keyboard 0 Movement Arrows Keybinds 0 Fullscreen 2 Font 18/SmallcapsGlow Map View 76x50 Tactical HUD 0 Map Filters NONE Filters NONE Steam 1 RUN: 21635469-e3a3-4373-a763-f95904f2a9ba